Cogmind - Beta 13 @@@ ROGUE MODE // 2024.04.13 @ 00:13:47 Player: Demo Result: Destroyed by H-77 Assassin with Coil Gun Performance ------------- Evolutions (7) 3500 Regions Visited (10) 2000 Robots Destroyed (125) 625 Value Destroyed (4526) 4526 Prototype IDs (37) 740 Alien Tech Used (0) 0 Bonus (2674) 2674 TOTAL SCORE: 14065 Bonus ------- High Alert Combat Kills 476 Follower Combat Kills 698 Hacked Protovariant 1000 Scanned by Researcher 500 Cogmind --------- Core Integrity 0/1300 Matter 34/300 Energy 178/180 System Corruption 16% Temperature Cool (6) Movement Flying (30) Location -3/Testing Parts ------- > --- POWER (2) -------- Light Particle Reactor > --- PROPULSION (4) --- Impulse Thruster Q-thruster Improved Diametric Drive > --- UTILITY (12) ----- Improved Signal Interpreter Advanced Melee Analysis Suite Improved Hacking Suite System Mapper System Shield Improved System Shield > --- WEAPON (3) ------- Shock Maul Plasma Sword > --- INVENTORY (5) ---- Cooled Gravmag System Perforator Compact Tesla Bomb Launcher Containment Facilitator (1) Peak State ------------ > --- POWER ------------ Micro Fission Core > --- PROPULSION ------- Field Propulsion Array Field Propulsion Array > --- UTILITY ---------- Power Amplifier Advanced Power Amplifier Enhanced Optical Array Improved Signal Interpreter Improved Force Booster Advanced Transmission Jammer Advanced Reaction Control System Improved Hacking Suite Improved System Shield System Guard > --- WEAPON ----------- Perforator Force Lance > --- INVENTORY -------- Light Antimatter Reactor Impulse Thruster Q-thruster Improved Diametric Drive Gamma Bomb Array [Rating: 126] Favorites ----------- Power Antimatter Reactor Engine Angular Momentum Engine Power Core Nuclear Core Reactor Antimatter Reactor Propulsion Armored Leg Treads Light Treads Leg Armored Leg Wheel Compact Wheel Hover Unit Antigrav System Flight Unit Field Propulsion Array Utility Improved Signal Interpreter Device Advanced Transmission Jammer Storage High-capacity Storage Unit Processor Improved Signal Interpreter Hackware Improved Hacking Suite Protection Improved Utility Shielding Weapon Mini Assault Cannon Energy Gun Tesla Rifle Energy Cannon Advanced Plasma Cannon Ballistic Gun Light Assault Rifle Ballistic Cannon Mini Assault Cannon Launcher Gamma Bomb Array Impact Weapon Maul Slashing Weapon Plasma Sword Piercing Weapon Force Lance Build | -11 -10 -9 -8 -8 -7 -6 -5 -4 -3 -3 ------- Run | Yrd Mat Mat Mat Sto Fac Fac Fac Fac Res Tes Slots Evolved 14 | . . 2 2 . 2 2 2 2 2 . Power 1 | . . . . . . . 1 . . . Propulsion 2 | . . . . . 1 . . 1 . . Utility 10 | . . 2 2 . 1 2 . 1 2 . Weapon 1 | . . . . . . . 1 . . . Parts Attached 216 | 7 3 11 14 23 8 21 2 43 41 43 Power 26 | . . 1 2 2 1 1 . 9 6 4 Engine 5 | . . 1 2 1 1 . . . . . Core 10 | . . . . 1 . 1 . 6 2 . Reactor 11 | . . . . . . . . 3 4 4 Propulsion 58 | 2 2 3 2 5 2 9 1 12 7 13 Treads 3 | 1 . . . 1 . . . . 1 . Leg 23 | . . . . 2 1 7 1 8 4 . Wheel 12 | 1 2 3 2 . . 2 . 2 . . Hover 4 | . . . . . 1 . . 1 . 2 Flight 16 | . . . . 2 . . . 1 2 11 Utility 70 | 2 1 4 3 3 3 10 1 11 19 13 Device 44 | 1 . 1 2 1 . 4 . 8 18 9 Storage 4 | 1 1 . . 1 . . . 1 . . Processor 11 | . . 1 1 1 3 2 1 . . 2 Hackware 7 | . . 2 . . . 1 . 1 1 2 Protection 4 | . . . . . . 3 . 1 . . Artifact . | . . . . . . . . . . . Weapon 62 | 3 . 3 7 13 2 1 . 11 9 13 Energy Gun 14 | . . 1 4 6 . . . 2 . 1 Energy Cannon 5 | . . . . . . . . 3 2 . Ballistic Gun 18 | 3 . 1 1 4 1 1 . 4 2 1 Ballistic Cannon 6 | . . 1 . . 1 . . . . 4 Launcher 10 | . . . 1 1 . . . 1 3 4 Special Weapon . | . . . . . . . . . . . Impact Weapon 5 | . . . 1 2 . . . 1 . 1 Slashing Weapon 1 | . . . . . . . . . . 1 Piercing Weapon 3 | . . . . . . . . . 2 1 Special Melee Weapon . | . . . . . . . . . . . Unidentified Prototypes 34 | . . . 1 6 1 . 1 4 2 19 Parts Lost 65 | . 2 7 6 4 1 9 . 6 14 16 Power 7 | . . 1 . 1 . 2 . . 1 2 Propulsion 23 | . 2 3 3 1 . 4 . 4 3 3 Utility 21 | . . . 1 1 1 2 . 1 6 9 Weapon 14 | . . 3 2 1 . 1 . 1 4 2 Highest Loss Streak 10 | . 1 3 6 4 1 5 . 2 8 10 To Critical Strikes 1 | . . . . . . . . . 1 . Average Slot Usage (%) 77 | . 84 77 81 75 89 83 57 75 77 57 Engine 1 | . . 3 1 3 . 1 . . . . Core 1 | . . . . 2 6 2 . . 2 1 Reactor 1 | . . . . . . . . 3 5 1 Treads 1 | . 14 7 . 2 . . . . . . Leg 8 | . . . . 5 21 15 16 13 11 . Wheel 4 | . 13 13 16 2 . 1 . . . . Flight 1 | . . . . 3 . . . . . 10 Device 9 | . 14 7 6 5 . 5 . 9 26 14 Storage 5 | . 14 11 9 6 7 4 . 4 3 . Processor 17 | . . 4 11 19 27 31 34 21 10 10 Hackware 8 | . . 8 18 12 7 6 5 7 8 10 Energy Gun 2 | . . 7 2 9 3 . . 2 . . Ballistic Gun 6 | . 28 13 10 1 3 4 . 3 . . Ballistic Cannon 2 | . . 1 5 . 6 4 . . . . Naked Turns . | . . . . . . . . . . . Heaviest Build 106 | 9 44 47 52 57 31 40 . 84 106 47 Greatest Support 103 | 10 16 28 28 32 42 42 3 86 103 30 Greatest Overweight (x) 11 | . 4 4 3 11 . 3 . 5 3 2 Average Overweight (x) . | . 1 3 1 . . . . . . . Largest Inventory Capacity 20 | 8 20 20 20 20 10 10 5 20 20 5 Average Capacity 13 | 7 10 20 20 12 10 8 5 17 18 5 Most Carried 20 | 5 9 14 20 20 10 10 5 20 20 5 Average Carried 10 | 2 6 10 16 10 9 8 4 12 16 4 Final Capacity 20 | 8 20 20 20 10 10 5 5 20 5 5 Final Carried 20 | 5 9 12 15 9 10 5 5 20 5 5 Class Distribution -------------------- 35% | Mutant 30% | Scavenger-Mutant 17% | Hacker-Mutant 4% | Commander-Mutant 3% | Scavenger-Tank 3% | Hacker-Tank Dominant Class ---------------- Mutant | -10/Materials Mutant | -9/Materials Scavenger-Mutant | -8/Materials Commander-Mutant | -8/Storage Scavenger-Mutant | -7/Factory Scavenger-Mutant | -6/Factory Mutant | -5/Factory Mutant | -4/Factory Scavenger-Mutant | -3/Research Hacker-Mutant | -3/Testing Resources | -11 -10 -9 -8 -8 -7 -6 -5 -4 -3 -3 ----------- Run | Yrd Mat Mat Mat Sto Fac Fac Fac Fac Res Tes Matter Collected 3588 | 241 285 217 67 243 179 424 16 751 341 824 Remotely . | . . . . . . . . . . . Salvage Created 4164 | 112 363 684 111 163 52 689 105 707 262 916 Parts 232 | 8 25 44 6 4 5 35 7 22 15 61 Haulers Intercepted 2 | . . 1 1 . . . . . . . Recyclers Shooed 3 | 1 . . 1 . . 1 . . . . Parts Field Recycled 6 | . . . . . . . . . 6 . Retrieved Matter 55 | . . . . . . . . . 55 . Parts Self-Destructed . | . . . . . . . . . . . Prevented . | . . . . . . . . . . . Kills | -11 -10 -9 -8 -8 -7 -6 -5 -4 -3 -3 ------- Run | Yrd Mat Mat Mat Sto Fac Fac Fac Fac Res Tes Combat Hostiles Destroyed 80 | . 12 19 6 2 3 12 2 8 7 9 Melee 3 | . . . . . . . . . 3 . Guns 43 | . 12 18 4 1 1 5 . 2 . . Cannons 18 | . . 1 . . 2 4 . 2 . 9 AOE 15 | . . . 2 1 . 3 2 3 4 . Classes Destroyed 18 | 2 3 3 1 . 1 4 1 . . 3 Worker 12 | . . . . . . 8 . 3 1 . Builder 11 | . . . . . . 2 1 4 1 3 Tunneler 4 | 3 . 1 . . . . . . . . Hauler 2 | . . 1 1 . . . . . . . Recycler 4 | 1 . . . 1 . . . 2 . . Operator 4 | . 1 1 . . 1 . . . . 1 Drone 1 | . . . . . 1 . . . . . Watcher 6 | . . 2 . 1 . . 1 1 1 . Swarmer 23 | . 6 10 3 . . . . 4 . . Grunt 25 | . 6 5 2 2 . 7 1 . . 2 Brawler 1 | . . . . . . . 1 . . . Protector 1 | . . . . . . . . . . 1 Researcher 2 | . . . . . . . . . . 2 Sentry 7 | . . 4 . . . 2 . . 1 . Specialist 3 | . . . . . . 1 . . . 2 Hunter 11 | . . . 1 . 2 1 . 2 3 2 Programmer 6 | . . . . . . 1 . 2 3 . Investigator 1 | . . . . . . . . . . 1 Striker 2 | . . . . . . . . . . 2 Best Kill Streak 8 | 4 3 8 4 4 2 5 3 4 4 8 Combat Bots Only 6 | . 3 6 3 2 2 3 1 4 2 6 Max Kills in Single Turn 3 | 1 1 2 1 2 1 3 2 3 3 3 Gunslinging 1 | . . 1 . . . . . . . . Exploded 3 | . . . 1 1 . 3 1 3 2 . Melee 1 | . . . . . . . . . 1 . Uniques/NPCs Destroyed . | . . . . . . . . . . . Combat | -11 -10 -9 -8 -8 -7 -6 -5 -4 -3 -3 -------- Run | Yrd Mat Mat Mat Sto Fac Fac Fac Fac Res Tes Hostile Shots Fired 1051 | . 52 98 51 37 17 153 56 138 219 230 Missed 389 | . 12 23 18 15 9 66 29 41 95 81 Damage Taken 10375 | . 383 762 690 370 186 1590 628 1792 1761 2213 Core 2849 | . 52 250 187 105 . 417 271 257 278 1032 Absorbed by Shields 1350 | . . . . . . . . . 265 1085 Redirected to Shielding 125 | . . . . . . 13 . 97 15 . Ignored by Resistances 26 | . . . . . . . . 26 . . Core Remaining (%) 70 | 100 79 37 . 46 100 50 72 77 . . Volleys Fired 267 | 16 43 64 14 17 10 47 . 34 10 12 Largest 3 | 2 2 2 2 2 2 2 . 3 3 1 Hottest 193 | 40 40 73 96 111 104 76 . 193 158 100 Shots Fired 505 | 32 86 125 25 23 20 94 . 77 11 12 Gun 393 | 32 86 119 24 20 10 46 . 53 2 1 Cannon 97 | . . 6 . . 10 48 . 21 1 11 Launcher 15 | . . . 1 3 . . . 3 8 . Special . | . . . . . . . . . . . Kinetic 382 | 32 86 76 21 . 16 94 . 43 2 12 Thermal 91 | . . 49 2 14 4 . . 21 1 . Explosive 14 | . . . 1 3 . . . 3 7 . Electromagnetic 18 | . . . 1 6 . . . 10 1 . Robot Hit Streak 18 | 6 9 18 4 5 8 16 . 8 8 6 Robot Miss Streak 8 | 2 4 3 3 1 1 2 . 5 1 8 Penetration Max 3 | . . . . . . 1 . . . 3 Secondary Targets 2 | . . 1 1 . . . . . . . Max Gunslinging Chain 1 | . . 1 1 . . . . . . . Shots Hit Robots 327 | 18 51 77 11 12 15 65 . 46 16 16 Core Hits 220 | 6 22 35 13 7 5 33 6 23 34 36 Critical Kills 15 | . 1 . . . . 1 . 1 . 12 Critical Parts Destroyed 15 | . . . . . . 1 . 1 . 13 Critical Strikes 39 | . 1 2 . 1 . 4 . 2 1 28 Burn 3 | . . 2 . 1 . . . . . . Meltdown 1 | . . . . . . . . 1 . . Destroy 31 | . 1 . . . . 2 . 1 . 27 Blast 2 | . . . . . . 2 . . . . Impale 2 | . . . . . . . . . 1 1 Melee Attacks 44 | . . . 2 3 . . . 9 17 13 Impact 16 | . . . 2 3 . . . 9 . 2 Slashing 1 | . . . . . . . . . . 1 Piercing 27 | . . . . . . . . . 17 10 Sneak Attacks 9 | . . . . . . . . 7 . 2 Combat Hostiles . | . . . . . . . . . . . Follow-up Attacks . | . . . . . . . . . . . Damage Inflicted 11631 | 151 535 973 398 505 495 2538 657 2551 2119 709 Guns 3604 | 151 535 917 177 180 122 821 . 669 32 . Cannons 1698 | . . 56 . . 164 869 . 421 . 188 Explosions 4507 | . . . 221 325 200 801 645 726 1589 . Melee 1715 | . . . . . . . . 696 498 521 Ramming 107 | . . . . . 9 47 12 39 . . Kinetic 4079 | 151 535 542 148 . 253 1690 . 540 32 188 Thermal 2191 | . . 431 14 167 233 577 348 421 . . Explosive 3197 | . . . 102 289 . 224 297 726 1559 . Electromagnetic 342 | . . . 134 49 . . . 129 30 . Impact 696 | . . . . . . . . 696 . . Slashing . | . . . . . . . . . . . Piercing 1019 | . . . . . . . . . 498 521 Highest Corruption 16 | . . . . . . 4 1 9 11 16 Average Corruption 5 | . . . . . . 2 1 8 9 9 Corruption Purged . | . . . . . . . . . . . Corruption Blocked . | . . . . . . . . . . . Effects 47 | . . . . . . 14 1 7 3 22 Message Errors 9 | . . . . . . 4 . . . 5 Matter Fused 6 | . . . . . . 2 . 1 . 3 Heat Flow Errors 5 | . . . . . . 2 . 1 . 2 Energy Discharges 14 | . . . . . . 4 1 3 1 5 Parts Rejected 1 | . . . . . . . . . 1 . Parts Fused 1 | . . . . . . . . 1 . . Data Loss (minor) 4 | . . . . . . . . 1 . 3 Data Loss (major) 1 | . . . . . . . . . . 1 Misfires 1 | . . . . . . 1 . . . . Alerts 1 | . . . . . . 1 . . . . Misdirections 3 | . . . . . . . . . . 3 Weapon Failures 1 | . . . . . . . . . 1 . Overload Shots . | . . . . . . . . . . . Overflow Damage 725 | . . . . 3 70 58 58 340 167 29 Projectiles 47 | . . . . . . 16 . 31 . . Explosions 280 | . . . . 3 70 42 58 38 69 . Melee 398 | . . . . . . . . 271 98 29 Knockbacks 22 | . . . . . 2 5 . 3 . 12 Impact 3 | . . . . . . . . 3 . . Kinetic 17 | . . . . . 2 4 . . . 11 Secondary 2 | . . . . . . 1 . . . 1 Self-Inflicted Damage 202 | . . . . . . 46 6 79 71 . Shots 4 | . . . . . . 1 . 1 2 . Rammed 4 | . . . . . . . 2 2 . . Targets Rammed 18 | . . . . . 3 7 2 6 . . Kicked 14 | . . . . . 3 7 . 4 . . Crushed . | . . . . . . . . . . . Highest Temperature 270 | . 4 68 20 63 63 160 . 270 69 185 Average Temperature 41 | . 1 21 8 24 28 23 . 86 29 60 Received Heat Transfer 1496 | . 111 273 126 135 12 360 162 99 48 170 Effects 1 | . . . . . . . . 1 . . Interference 1 | . . . . . . . . 1 . . Siege Activations . | . . . . . . . . . . . Robots Corrupted . | . . . . . . . . . . . Combat Hostiles . | . . . . . . . . . . . Parts Fried 7 | . . . . . . . . 7 . . Impact Corruptions 9 | . . . . . . . . 9 . . Robots Melted 1 | . . . . . . . . 1 . . Combat Hostiles 1 | . . . . . . . . 1 . . Parts Melted 5 | . . 3 . . . . . 2 . . Heat Transferred 3163 | . . 1369 37 383 174 400 200 600 . . Parts Sabotaged . | . . . . . . . . . . . Parts Stolen . | . . . . . . . . . . . Parts Stripped . | . . . . . . . . . . . Power Chain Reactions 1 | . . . . 1 . . . . . . Alert | -11 -10 -9 -8 -8 -7 -6 -5 -4 -3 -3 ------- Run | Yrd Mat Mat Mat Sto Fac Fac Fac Fac Res Tes Peak Influence 955 | 20 266 381 169 432 291 392 788 955 594 537 Initial 442 | . 13 42 135 70 196 91 144 385 442 322 Average 303 | 6 153 212 101 199 225 184 360 631 508 360 Maximum Alert Level 3 | . 1 1 . 2 1 1 3 3 2 2 Low Security (%) 40 | 100 58 45 100 66 40 54 37 . . 4 Level 1 28 | . 41 54 . 22 59 45 24 . 12 52 Level 2 22 | . . . . 10 . . 26 51 87 43 Level 3 8 | . . . . . . . 11 48 . . Level 4 . | . . . . . . . . . . . Level 5 . | . . . . . . . . . . . High Security . | . . . . . . . . . . . Max Security . | . . . . . . . . . . . Squads Dispatched 33 | . 2 2 1 1 2 4 3 7 2 9 Investigation 10 | . 1 . 1 . . . 3 2 . 3 Extermination 5 | . . . . . 1 1 . 2 1 . Reinforcement 15 | . 1 2 . . 1 3 . 3 1 4 Assault 2 | . . . . . . . . . . 2 Garrison 1 | . . . . 1 . . . . . . Intercept . | . . . . . . . . . . . Searches Triggered . | . . . . . . . . . . . Construction Impeded 3 | . . . . . . 1 . 2 . . Haulers Reinforced 1 | . . . . . . 1 . . . . Active Scanning Responses . | . . . . . . . . . . . Cargo Convoy Interrupts . | . . . . . . . . . . . Stealth | -11 -10 -9 -8 -8 -7 -6 -5 -4 -3 -3 --------- Run | Yrd Mat Mat Mat Sto Fac Fac Fac Fac Res Tes Distress Signals 11 | . . 5 . 2 . . 2 1 . 1 Communications Jammed 143 | . . . . . . 16 . . 104 23 Distress Signals 143 | . . . . . . 16 . . 104 23 Times Spotted 209 | . 14 27 9 11 9 25 32 31 16 35 Peak Tracking Total 20 | . 3 5 5 4 4 5 20 10 5 12 Tactical Retreats 23 | . . 1 1 2 1 3 6 3 1 5 Traps | -11 -10 -9 -8 -8 -7 -6 -5 -4 -3 -3 ------- Run | Yrd Mat Mat Mat Sto Fac Fac Fac Fac Res Tes Traps Triggered 8 | . 1 . . 1 1 2 1 . 2 . Indirectly . | . . . . . . . . . . . Trap Hack Attempts . | . . . . . . . . . . . Triggered . | . . . . . . . . . . . Disarmed . | . . . . . . . . . . . Reprogrammed 2 | . . . . . . . . . . 2 Reused 2 | . . . . . . . . . . 2 Traps Extracted . | . . . . . . . . . . . Installed . | . . . . . . . . . . . Triggered 3 | . . . . 1 . . . . . 2 Objects Rigged 12 | . . . . . 2 4 6 . . . Exploded 5 | . . . . . 1 1 3 . . . Machines | -11 -10 -9 -8 -8 -7 -6 -5 -4 -3 -3 ---------- Run | Yrd Mat Mat Mat Sto Fac Fac Fac Fac Res Tes Machines Disabled 43 | . . . 5 3 4 12 5 7 1 6 Max in Single Turn 7 | . . . 3 1 4 7 2 2 1 1 Garrison Access 2 | . . . . 1 . . 1 . . . Machines Repaired . | . . . . . . . . . . . Machines Dismantled . | . . . . . . . . . . . Machines Sabotaged . | . . . . . . . . . . . Overloaded Fab Kills . | . . . . . . . . . . . Hacking | -11 -10 -9 -8 -8 -7 -6 -5 -4 -3 -3 --------- Run | Yrd Mat Mat Mat Sto Fac Fac Fac Fac Res Tes Machines Accessed 32 | . 3 2 4 4 3 1 4 2 2 7 Terminals 25 | . 3 2 3 3 2 1 3 1 1 6 Fabricators 1 | . . . . . 1 . . . . . Repair Stations . | . . . . . . . . . . . Recycling Units . | . . . . . . . . . . . Scanalyzers 3 | . . . 1 . . . . . 1 1 Garrison Access 3 | . . . . 1 . . 1 1 . . Total Hacks 115 | . 8 4 28 9 9 5 14 5 4 29 Successful 59 | . 3 2 21 2 5 2 6 3 2 13 Failed 54 | . 5 1 6 7 4 3 8 2 2 16 Catastrophic 13 | . 2 . . 2 1 1 1 . . 6 Database Lockouts 2 | . . 1 1 . . . . . . . Manual 58 | . 6 4 9 2 3 5 12 5 . 12 Terminals 90 | . 8 4 13 8 6 5 12 4 2 28 Fabricators 3 | . . . . . 3 . . . . . Repair Stations . | . . . . . . . . . . . Recycling Units . | . . . . . . . . . . . Scanalyzers 18 | . . . 15 . . . . . 2 1 Garrison Access 4 | . . . . 1 . . 2 1 . . Terminal Hacks 32 | . 3 2 6 1 1 1 2 2 1 13 Robot Analysis 8 | . 2 2 3 . . . 1 . . . Level Access Points 1 | . . . . . . . . 1 . . Emergency Access Points 2 | . . . . . 1 . . . . 1 Terminal Index 1 | . . . 1 . . . . . . . Alert Level 5 | . . . 1 . . . . 1 1 2 Unreport Threat 4 | . . . . 1 . 1 1 . . 1 Locate Traps 2 | . . . 1 . . . . . . 1 Reprogram Traps 1 | . . . . . . . . . . 1 Recall Investigation 1 | . . . . . . . . . . 1 Registered Components 1 | . 1 . . . . . . . . . Protovariant Controls 6 | . . . . . . . . . . 6 Fabricator Hacks 3 | . . . . . 3 . . . . . Network Status 2 | . . . . . 2 . . . . . Build 1 | . . . . . 1 . . . . . Repair Station Hacks . | . . . . . . . . . . . Recycling Unit Hacks . | . . . . . . . . . . . Scanalyzer 16 | . . . 15 . . . . . 1 . Insert Component 8 | . . . 7 . . . . . 1 . Analyze 8 | . . . 8 . . . . . . . Garrison Access Hacks 1 | . . . . 1 . . . . . . Seal Access 1 | . . . . 1 . . . . . . Unauthorized Hacks 7 | . . . . . 1 1 4 1 . . Terminals 5 | . . . . . 1 1 3 . . . Track 1 | . . . . . . . 1 . . . Detonate 3 | . . . . . 1 1 1 . . . Operators 1 | . . . . . . . 1 . . . Fabricators . | . . . . . . . . . . . Repair Stations . | . . . . . . . . . . . Recycling Units . | . . . . . . . . . . . Scanalyzers . | . . . . . . . . . . . Garrison Access 2 | . . . . . . . 1 1 . . Reprogram 1 | . . . . . . . . 1 . . Jam 1 | . . . . . . . 1 . . . Data Cores Recovered . | . . . . . . . . . . . Used . | . . . . . . . . . . . Hacking Detections 29 | . 2 2 4 3 2 1 4 2 2 7 Full Trace Events 7 | . . . 1 . . . 2 1 . 3 Feedback Events . | . . . . . . . . . . . Feedback Blocked . | . . . . . . . . . . . Robot Schematics Acquired 2 | . . . . . . . . . . 2 Robots Built . | . . . . . . . . . . . Authchips . | . . . . . . . . . . . Time . | . . . . . . . . . . . Total Robot Build Rating . | . . . . . . . . . . . Part Schematics Acquired 10 | . . . 7 . . . . . . 3 Parts Built 2 | . . . . . 2 . . . . . Authchips . | . . . . . . . . . . . Time 47 | . . . . . 47 . . . . . Total Part Build Rating 10 | . . . . . 10 . . . . . Parts Repaired . | . . . . . . . . . . . Time . | . . . . . . . . . . . Parts Recycled . | . . . . . . . . . . . Recycled Matter . | . . . . . . . . . . . Retrieved Matter . | . . . . . . . . . . . Retrieved Components . | . . . . . . . . . . . Parts Scanalyzed 8 | . . . 7 . . . . . 1 . Part Schematics Acquired 7 | . . . 7 . . . . . . . Parts Damaged 2 | . . . 1 . . . . . 1 . Bothacking | -11 -10 -9 -8 -8 -7 -6 -5 -4 -3 -3 ------------ Run | Yrd Mat Mat Mat Sto Fac Fac Fac Fac Res Tes Used RIF Installer . | . . . . . . . . . . . Robots Hacked . | . . . . . . . . . . . Non-combat . | . . . . . . . . . . . Combat . | . . . . . . . . . . . Robot Hacks Applied . | . . . . . . . . . . . Relay Couplers Released . | . . . . . . . . . . . Fabnet Peak Effective % . | . . . . . . . . . . . Robots Rewired 1 | . . . . 1 . . . . . . Allies Hacked . | . . . . . . . . . . . Hacks Repelled . | . . . . . . . . . . . Allies | -11 -10 -9 -8 -8 -7 -6 -5 -4 -3 -3 -------- Run | Yrd Mat Mat Mat Sto Fac Fac Fac Fac Res Tes Total Allies 12 | . . . . 10 . . . 2 . . Largest Group 10 | . . . . 10 10 . . 2 . . Highest-Rated Group 173 | . . . . 173 173 . . 112 . . Highest-Rated Ally 56 | . . . . 29 29 . . 56 . . Total Orders 1 | . . . . . . . . 1 . . EXPLORE 1 | . . . . . . . . 1 . . Ally Attacks 117 | . . . . 33 59 . . 25 . . Total Damage 2308 | . . . . 460 649 . . 1199 . . Kills 25 | . . . . 8 5 . . 12 . . Allies Corrupted . | . . . . . . . . . . . Allies Melted . | . . . . . . . . . . . Intel | -11 -10 -9 -8 -8 -7 -6 -5 -4 -3 -3 ------- Run | Yrd Mat Mat Mat Sto Fac Fac Fac Fac Res Tes Robot Analysis Total 8 | . 2 2 3 . . . 1 . . . Derelict Logs Recovered . | . . . . . . . . . . . Drone Launches 2 | . . . . . . . . 2 . . Drone Recoveries . | . . . . . . . . . . . Exploration | -11 -10 -9 -8 -8 -7 -6 -5 -4 -3 -3 ------------- Run | Yrd Mat Mat Mat Sto Fac Fac Fac Fac Res Tes Turns Passed 7404 | 123 556 683 973 348 579 1240 314 1206 767 615 Spaces Moved 5622 | 70 224 312 525 258 364 958 598 849 456 1008 Core 1200 | 7 . . . . . 431 598 159 . 5 Treads . | . . . . . . . . . . . Legs 1742 | . . . . 73 364 501 . 482 322 . Wheels 1211 | 63 224 312 525 47 . 26 . 14 . . Hover 1 | . . . . . . . . . . 1 Flight 1468 | . . . . 138 . . . 194 134 1002 Fastest Speed 28 | 50 80 110 105 35 123 50 50 50 37 28 Average Speed 90 | 77 106 130 114 87 123 91 50 115 129 38 Slowest Speed 825 | 80 140 140 145 825 125 260 50 190 330 150 Overloaded Moves . | . . . . . . . . . . . Propulsion Burnouts . | . . . . . . . . . . . Robots Hopped 19 | . . . . 3 . . . . . 16 Cave-ins Triggered . | . . . . . . . . . . . Exploration Rate (%) 32 | 4 34 34 30 55 16 36 17 24 15 88 Regions Visited 10 Branch Regions 2 Pre-discovered Areas . | . . . . . . . . . . . Known Exits Taken 8 | . . 1 1 1 1 1 1 1 1 . Unknown Exits Taken 2 | 1 1 . . . . . . . . . Scrap Searched . | . . . . . . . . . . . Spaces Dug 3 | . . . 2 . . . . . 1 . Terrain Destroyed 363 | . . . 9 10 5 98 77 70 88 6 Melee 3 | . . . 2 . . . . . 1 . Projectile 24 | . . . . . . 2 . 21 1 . AOE 330 | . . . 7 10 5 96 77 49 86 . Terrain Rammed . | . . . . . . . . . . . Walls Destroyed . | . . . . . . . . . . . Machines Disabled . | . . . . . . . . . . . Actions | -11 -10 -9 -8 -8 -7 -6 -5 -4 -3 -3 --------- Run | Yrd Mat Mat Mat Sto Fac Fac Fac Fac Res Tes Total 7343 | 107 463 473 868 349 484 1228 612 986 598 1175 Wait 935 | 9 185 75 301 24 72 175 7 7 50 30 Move 5578 | 69 223 311 524 251 363 957 597 848 455 980 Hop 15 | . . . . 3 . . . . . 12 Pick Up 90 | 5 7 10 9 8 13 6 1 18 6 7 Fast Attach 102 | 7 . 2 3 10 6 10 2 19 12 31 Attach 80 | . 2 9 8 9 1 6 . 14 19 12 Detach 42 | . . 2 2 6 . 1 . 12 9 10 Swap 34 | . 1 . 3 4 1 5 . 10 10 . Drop 91 | 1 2 . 2 10 15 14 3 9 10 25 Fire 267 | 16 43 64 14 17 10 47 . 34 10 12 Melee 43 | . . . 2 3 . . . 9 17 12 Ram 4 | . . . . . . . 2 2 . . Kick 14 | . . . . . 3 7 . 4 . . Crush . | . . . . . . . . . . . Escape Stasis 44 | . . . . . . . . . . 44 Rewire 4 | . . . . 4 . . . . . . Trap . | . . . . . . . . . . . Miscellaneous . | . . . . . . . . . . . Route ------- -11/Scrapyard -10/Materials (discovered 2 exits: *Mat / [*Min]) -9/Materials (discovered 2 exits: *Mat / *Min) -8/Materials -8/Storage -7/Factory -6/Factory -5/Factory -4/Factory (discovered 4 exits: *Res x4) -3/Research -3/Testing History --------- Turn | Location | Event 3 | -11/Scrapyard | Discovered new exit (range 15) 124 | -11/Scrapyard | Entered Materials 248 | -10/Materials | Discovered new exit (range 5) 302 | -10/Materials | Discovered new exit (range 16) 314 | -10/Materials | Build established: Mutant 680 | -10/Materials | Entered another Materials area 680 | -9/Materials | Evolved 2 slots: Utility x2 1070 | -9/Materials | Discovered new exit (range 12) 1093 | -9/Materials | Identified exit to Mines 1119 | -9/Materials | Central database locked down 1177 | -9/Materials | Core integrity fell below 50% 1202 | -9/Materials | Lost 3 parts (2n1w) 1323 | -9/Materials | Discovered new exit (range 14) 1352 | -9/Materials | Identified exit to Materials 1363 | -9/Materials | Entered another Materials area 1363 | -8/Materials | Evolved 2 slots: Utility x2 1400 | -8/Materials | Discovered new exit (range 13) 1415 | -8/Materials | Identified exit to Storage 1419 | -8/Materials | Build established: Hacker-Mutant 1750 | -8/Materials | Central database locked down 1796 | -8/Materials | Build established: Scavenger-Mutant 2243 | -8/Materials | Lost 6 parts (3n1u2w) 2336 | -8/Materials | Entered Storage 2437 | -8/Storage | Garrison activated, responded to threat 2483 | -8/Storage | Lost 4 parts (1p1n1u1w) 2519 | -8/Storage | Core integrity fell below 50% 2529 | -8/Storage | Assisted by bots powering up and referring to "LRC-V3" 2619 | -8/Storage | Discovered new exit (range 19) 2683 | -8/Storage | Identified exit to Factory 2684 | -8/Storage | Entered Factory 2684 | -7/Factory | Accompanied by 10 allies 2684 | -7/Factory | Evolved 2 slots: Propulsion x1, Utility x1 2764 | -7/Factory | Lost 4 allies 2821 | -7/Factory | Build established: Commander-Mutant 3116 | -7/Factory | Discovered new exit (range 14) 3180 | -7/Factory | Fabricated Angular Momentum Engine (x2) 3203 | -7/Factory | Build established: Scavenger-Mutant 3260 | -7/Factory | Identified exit to Factory 3263 | -7/Factory | Entered another Factory area 3263 | -6/Factory | Evolved 2 slots: Utility x2 4141 | -6/Factory | Lost 5 parts (1p3n1u) 4331 | -6/Factory | Build established: Mutant 4494 | -6/Factory | Discovered new exit (range 13) 4503 | -6/Factory | Identified exit to Factory 4503 | -6/Factory | Entered another Factory area 4503 | -5/Factory | Evolved 2 slots: Power x1, Weapon x1 4548 | -5/Factory | Spotted B-75 Beast 4779 | -5/Factory | Found Prototype Processor 4779 | -5/Factory | Identified Exp. Targeting Computer 4811 | -5/Factory | Discovered new exit (range 13) 4816 | -5/Factory | Identified exit to Factory 4817 | -5/Factory | Entered another Factory area 4817 | -4/Factory | Evolved 2 slots: Propulsion x1, Utility x1 5449 | -4/Factory | Identified exit to Research 6023 | -4/Factory | Entered Research 6023 | -3/Research | Evolved 2 slots: Utility x2 6200 | -3/Research | Lost 4 parts (1n1u2w) 6325 | -3/Research | Build established: Scavenger-Mutant 6467 | -3/Research | Found Gamma Bomb Array 6686 | -3/Research | System corruption reached 10% 6718 | -3/Research | Lost 8 parts (1p1n5u1w) 6788 | -3/Research | Discovered new exit (range 6) 6789 | -3/Research | Identified exit to Testing 6790 | -3/Research | Entered Testing 6793 | -3/Testing | Found Prototype Device 6793 | -3/Testing | Identified Exp. Focal Shield 6825 | -3/Testing | Protovariant out of control (PL-KG9MXW2V5I) 6825 | -3/Testing | Unleashed a protovariant (PL-KG9MXW2V5I) 6825 | -3/Testing | Protovariant out of control (PG-EKAU93HQ5W) 6825 | -3/Testing | Unleashed a protovariant (PG-EKAU93HQ5W) 6878 | -3/Testing | Spotted Alpha 7 6880 | -3/Testing | Scanned by Researcher 6942 | -3/Testing | Found Prototype Device 6942 | -3/Testing | Identified Imp. Particle Accelerator 6960 | -3/Testing | Found Prototype Ballistic Gun 6960 | -3/Testing | Identified Hyp. Multirail 7018 | -3/Testing | Found Prototype Ballistic Cannon 7018 | -3/Testing | Identified Perforator 7054 | -3/Testing | Build established: Hacker-Mutant 7062 | -3/Testing | Lost 3 parts (1p2u) 7135 | -3/Testing | Spotted Investigator 7137 | -3/Testing | Spotted Striker 7139 | -3/Testing | Spotted Striker 7145 | -3/Testing | Spotted Alpha 7 7150 | -3/Testing | Destroyed Investigator 7153 | -3/Testing | Destroyed Striker 7156 | -3/Testing | Destroyed Striker 7162 | -3/Testing | Core integrity fell below 50% 7201 | -3/Testing | Core integrity fell below 20% 7221 | -3/Testing | Found Prototype Launcher 7221 | -3/Testing | Identified Containment Facilitator 7237 | -3/Testing | Lost 10 parts (1p2n5u2w) 7285 | -3/Testing | Found Prototype Device 7285 | -3/Testing | Identified Exp. Thermal Shield 7288 | -3/Testing | Found Prototype Launcher 7289 | -3/Testing | Identified Com. Tesla Bomb Launcher 7302 | -3/Testing | Found Prototype Energy Gun 7302 | -3/Testing | Identified Warp Gun 7353 | -3/Testing | Found Prototype Hackware 7353 | -3/Testing | Identified System Mapper 7405 | -3/Testing | Destroyed by H-77 Assassin with Coil Gun Last Messages --------------- 07333_ Dropped Cld. Gravmag System. 07334_ Acquired Cld. Gravmag System. 07337_ Dropped Cld. Gravmag System. 07337_ Acquired Q-thruster. 07339_ Dropped Warp Gun. 07340_ Acquired Cld. Gravmag System. 07341_ Acquired Lgt. Particle Reactor. 07342_ K-01 Serf cleans the Subatomic Condenser. 07343_ Dropped Particle Reactor. 07348_ System corrupted: Energy discharge (-70). 07350_ Reinforced Shell breached. 07353_ Acquired Prototype Hackware. 07353_ Identified System Mapper. 07373_ System corrupted: Matter fused (-8). 07394_ Penetrated by Slug. 07394_ Q-thruster destroyed. 07398_ Slug penetrates Fabricator. 07398_ Penetrated by Slug. 07403_ Slug penetrates Wall. [Achievement: Overachiever] Map ----- +----------------------------------------------------+ | """" ################### #???#?????????# #??? | | """ #?????????????????#=| !#?????????????# #??? | | ########?????????????????#! #?????????????# #??? | | #????????????????????????# $$*#?????????????# #??? | | #????????????????????????# ! #?????????????# #### | | #??????????????????????? + +?????????????# # | | #????????????????????? # # ????????????# # ! | | #???????????????????? # # ????????##### # | | #??????????????????" ?# #? ???????+ + | | #????????????????? ??# #?##??????# # | | #????????????????######??# #?????????# #! | | #????????????????????????# ??????? #### | | #????????????????????????+ #??????######## #??? | | #????????????????????????# #?????????????# #??# | | #????????????????????????# #????????????## #??# | | #????????????????????????# #????????????# ### | | #????????????????????????# #????????????+ T | | #????????????????????????# #???"????????# ### | | ?????????????????????????# k#? ""?????????# ??# | | #####?????????????######## # ""?????????? ??# | | #?????????????# # # ???????????? ??? | | #?????????????# # k/ ??????????????#??# | | ""#?????????????# # #??????????????????# | | T"#?????????##### # #??????????????????# | | ""#?????????# ####p##+# #??????????????????# | | #?????????# pp h @ #??????????????????# | | #"#########???# ####### #################### | | #?############ *= + | | " " #?# # =! ! # | | "" " #?# # ! """ """ """ + | | "" """ #?# " # [ """ """ """ # | | """""" #?# "" " + """ """ """ # | | ""&"" #?# "" " # ^ # | | """"" #?# "" " # "F "" """ =! """ # | | " """ #?# "" "" # h""""" """ =! """ # | | "" " #?# " " + """"" """ = """ # | | " #?# " # # | | """ #?# """ " + # | | #?# " " "" ##+######+##### ###+#### | | ###########?# " " ## # # | | ????????????# ## # # """ | | ????????????# ## ###### ""S" | | ????????????# ## #????# "" " | | ????????????############# #????# | | ????????????????????????# """ """ #????# | | ????????????????????????# """ """ #????# | | ????????????????????????# """ """ #????# ! | | ????????????????????????# """ """ #????######## | | ????????????????????????# """ """ #???????????? | | ????????????????????????# #???????????? | +----------------------------------------------------+ Best States ------------- Heat Dissipation 57 Energy Generation 52 Energy Capacity 375 Matter Stores 300 Matter Capacity 300 Sight Range 22 Terrain Scan Range 20 Terrain Scan Density 210 Jamming Range 16 Cloak Strength 4 Power Amplification 50 Corruption Containment 8 Armor Coverage 225 Resistance: TH 30 Utility Shielding 66 Melee Speed Boost 30 Phase Shifting 10 Evasion (%) 84 Targeting Accuracy 24 Melee Accuracy 8 Force Boost 30 Offensive Hacking 32 Defensive Hacking 22 Item Schematics ----------------- Imp. Utility Shielding | -8/Materials | Scanalyzed Wheel | -8/Materials | Scanalyzed Hcp. Storage Unit | -8/Materials | Scanalyzed Adv. Treads | -8/Materials | Scanalyzed Rnf. Ion Engine | -8/Materials | Scanalyzed Mni. Grenade Launcher | -8/Materials | Scanalyzed Beam Rifle | -8/Materials | Scanalyzed Cld. Antimatter Reactor | -3/Testing | Archive Cld. Plasma Rifle | -3/Testing | Archive Hdn. Centrium Wheel | -3/Testing | Archive Robot Schematics ------------------ M-36 Artificer | -3/Testing | Archive B-74 Champion | -3/Testing | Archive Fabricated ------------ Angular Momentum Engine | x2 | -7/Factory | Preloaded Alien Tech Used ----------------- None Achievements -------------- Overachiever Rampage Challenges ------------ None Game ------ Seed AluminumSegregatorPlating Manual? 0 Play Time 01:22:20 Cumulative 84.8 hours Start 2024.04.12 @ 22:10:57 End 2024.04.13 @ 00:13:47 Sessions 3 Manual Loads 0 Difficulty Rogue Special Mode None Game No. 99 Rogue 99 Adventurer 0 Explorer 0 Win Type - Total 1 Types 1/0/0/0/0/0/0/0/0 Lore% 44 Gallery% 64 Achievement% 50 Wizard Run 0 Options --------- Layout 1 ASCII 0 Keyboard 0 Movement Numpad Keybinds 0 Fullscreen 1 Font 24/Smallcaps Map View 50x35 Zoom Use 0% Tactical HUD 1 Map Filters NONE Filters NONE Steam 1 RUN: ce3ad5bc-21f6-4b6b-911e-ecb85cbb26d5